{"text_format":"3","workbook":"xlsx","n_sheets":1,"sheets":["Krevní tlak a hladina cukru"],"not_rendered":{"defined_names":9},"read":"whole","date_system":"1900"}

{"sheet":"Krevní tlak a hladina cukru","index":0,"n_rows":13,"n_cols":11,"rows_kept":13,"merged":[[0,1,4,3],[0,4,0,9],[1,4,1,6],[1,7,1,9],[3,7,4,7],[3,8,4,8],[3,9,4,9]]}
[null,"Sledování krevního\ntlaku a cukru v krvi",null,null,"V buňkách E2 až J5 níže si můžete přizpůsobit hodnoty stupnice."]
[{"$nulls":4},"KREVNÍ TLAK",null,null,"HLADINA CUKRU V KRVI"]
[{"$nulls":4},120,"SYSTOLICKÝ",140,70,100,150]
[{"$nulls":4},80,"DIASTOLICKÝ",90,"NÍZKÁ","NORMÁLNÍ","VYSOKÁ"]
[{"$nulls":4},"CÍLOVÝ TLAK",null,"VOLAT LÉKAŘI"]
[null,"Datum","Čas","Událost","Systolický","Diastolický","Srdeční tep","Cukr","Hladina","Stav","Poznámky"]
[null,{"$f":"TODAY()","v":"2018-06-28"},"06:00:00","Probuzení",129,79,72,55,{"$f":"KrevníTlakACukr[[#This Row],[Cukr]]","v":55},{"$f":"IFERROR(IF(KrevníTlakACukr[[#This Row],[Hladina]]=0,\"\",IF(KrevníTlakACukr[[#This Row],[Hladina]]<=CNízký,\"NÍZKÁ\",IF(AND(KrevníTlakACukr[[#This Row],[Hladina]]>CNízký,KrevníTlakACukr[[#This Row],[Hladina]]<CVysoký),\"NORMÁLNÍ\",\"VYSOKÁ\"))), \"\")","v":"NÍZKÁ"}]
[null,{"$f":"TODAY()","v":"2018-06-28"},"07:00:00","Před jídlem",120,80,74,70,{"$f":"KrevníTlakACukr[[#This Row],[Cukr]]","v":70},{"$f":"IFERROR(IF(KrevníTlakACukr[[#This Row],[Hladina]]=0,\"\",IF(KrevníTlakACukr[[#This Row],[Hladina]]<=CNízký,\"NÍZKÁ\",IF(AND(KrevníTlakACukr[[#This Row],[Hladina]]>CNízký,KrevníTlakACukr[[#This Row],[Hladina]]<CVysoký),\"NORMÁLNÍ\",\"VYSOKÁ\"))), \"\")","v":"NÍZKÁ"}]
[null,"2018-06-28","09:00:00","Po jídle",133,80,75,75,{"$f":"KrevníTlakACukr[[#This Row],[Cukr]]","v":75},{"$f":"IFERROR(IF(KrevníTlakACukr[[#This Row],[Hladina]]=0,\"\",IF(KrevníTlakACukr[[#This Row],[Hladina]]<=CNízký,\"NÍZKÁ\",IF(AND(KrevníTlakACukr[[#This Row],[Hladina]]>CNízký,KrevníTlakACukr[[#This Row],[Hladina]]<CVysoký),\"NORMÁLNÍ\",\"VYSOKÁ\"))), \"\")","v":"NORMÁLNÍ"}]
[null,"2018-06-28","10:00:00","Jenom krevní tlak",143,91,75,190,{"$f":"KrevníTlakACukr[[#This Row],[Cukr]]","v":190},{"$f":"IFERROR(IF(KrevníTlakACukr[[#This Row],[Hladina]]=0,\"\",IF(KrevníTlakACukr[[#This Row],[Hladina]]<=CNízký,\"NÍZKÁ\",IF(AND(KrevníTlakACukr[[#This Row],[Hladina]]>CNízký,KrevníTlakACukr[[#This Row],[Hladina]]<CVysoký),\"NORMÁLNÍ\",\"VYSOKÁ\"))), \"\")","v":"VYSOKÁ"}]
[null,"2018-06-28","12:00:00","Před jídlem",141,84,70,140,{"$f":"KrevníTlakACukr[[#This Row],[Cukr]]","v":140},{"$f":"IFERROR(IF(KrevníTlakACukr[[#This Row],[Hladina]]=0,\"\",IF(KrevníTlakACukr[[#This Row],[Hladina]]<=CNízký,\"NÍZKÁ\",IF(AND(KrevníTlakACukr[[#This Row],[Hladina]]>CNízký,KrevníTlakACukr[[#This Row],[Hladina]]<CVysoký),\"NORMÁLNÍ\",\"VYSOKÁ\"))), \"\")","v":"NORMÁLNÍ"}]
[null,{"$f":"TODAY()","v":"2018-06-28"},"15:00:00","Po jídle",132,80,68,90,{"$f":"KrevníTlakACukr[[#This Row],[Cukr]]","v":90},{"$f":"IFERROR(IF(KrevníTlakACukr[[#This Row],[Hladina]]=0,\"\",IF(KrevníTlakACukr[[#This Row],[Hladina]]<=CNízký,\"NÍZKÁ\",IF(AND(KrevníTlakACukr[[#This Row],[Hladina]]>CNízký,KrevníTlakACukr[[#This Row],[Hladina]]<CVysoký),\"NORMÁLNÍ\",\"VYSOKÁ\"))), \"\")","v":"NORMÁLNÍ"},"Užití léku na tlak během jídla"]
[null,"Průměrné hodnoty",null,null,{"$f":"SUBTOTAL(101,KrevníTlakACukr[Systolický])","v":133},{"$f":"SUBTOTAL(101,KrevníTlakACukr[Diastolický])","v":{"v":82.33333333333333,"d":"82"}},{"$f":"SUBTOTAL(101,KrevníTlakACukr[Srdeční tep])","v":{"v":72.33333333333333,"d":"72"}},{"$f":"SUBTOTAL(101,KrevníTlakACukr[Cukr])","v":{"v":103.33333333333333,"d":"103"}}]